[Event "Titled Tuesday Blitz September 27 Early 2022"]
[White "Amgalantengis, Enkh-Amgalan"]
[Black "Al-Tarboush, Ward"]
[WhiteFideId "4903536"]
[BlackFideId "7601450"]
[WhiteElo "1719"]
[BlackElo "2234"]
[Result "0-1"]
[Round "04"]
[TimeControl "180+1"]
[Date "2022.09.27"]
[WhiteClock "0:00:03"]
[BlackClock "0:00:15"]

1. d4 {[%clk 0:03:00]}  d5 {[%clk 0:02:58]} 2. c4 {[%clk 0:03:00]}  c6 {[%clk 0:02:57]} 3. Nf3 {[%clk 0:03:00]}  Nf6 {[%clk 0:02:57]} 4. e3 {[%clk 0:03:00]}  e6 {[%clk 0:02:58]} 5. Nbd2 {[%clk 0:02:59]}  c5 {[%clk 0:02:58]} 6. cxd5 {[%clk 0:02:56]}  exd5 {[%clk 0:02:55]} 7. b3 {[%clk 0:02:55]}  Nc6 {[%clk 0:02:54]} 8. Bb2 {[%clk 0:02:55]}  b6 {[%clk 0:02:51]} 9. Bb5 {[%clk 0:02:54]}  Bd7 {[%clk 0:02:51]} 10. O-O {[%clk 0:02:50]}  Be7 {[%clk 0:02:49]} 11. Rc1 {[%clk 0:02:49]}  Ne4 {[%clk 0:02:23]} 12. Nxe4 {[%clk 0:02:41]}  dxe4 {[%clk 0:02:22]} 13. Nd2 {[%clk 0:02:25]}  a6 {[%clk 0:02:17]} 14. Bc4 {[%clk 0:02:19]}  cxd4 {[%clk 0:02:08]} 15. Nxe4 {[%clk 0:02:15]}  f5 {[%clk 0:01:39]} 16. Ng3 {[%clk 0:02:02]}  Bf6 {[%clk 0:01:34]} 17. exd4 {[%clk 0:01:58]}  Ne7 {[%clk 0:01:29]} 18. Nh5 {[%clk 0:01:54]}  Bg5 {[%clk 0:00:57]} 19. Nxg7+ {[%clk 0:01:18]}  Kf8 {[%clk 0:00:56]} 20. Qh5 {[%clk 0:01:18]}  Ng6 {[%clk 0:00:53]} 21. d5 {[%clk 0:00:54]}  Bxc1 {[%clk 0:00:43]} 22. Rxc1 {[%clk 0:00:54]}  Qh4 {[%clk 0:00:37]} 23. Qf3 {[%clk 0:00:27]}  Qe4 {[%clk 0:00:25]} 24. Qc3 {[%clk 0:00:18]}  Qe5 {[%clk 0:00:03]} 25. Qxe5 {[%clk 0:00:15]}  Nxe5 {[%clk 0:00:04]} 26. Bxe5 {[%clk 0:00:16]}  b5 {[%clk 0:00:05]} 27. Bd3 {[%clk 0:00:13]}  Rc8 {[%clk 0:00:05]} 28. Rxc8+ {[%clk 0:00:12]}  Bxc8 {[%clk 0:00:06]} 29. Nxf5 {[%clk 0:00:11]}  Rg8 {[%clk 0:00:07]} 30. d6 {[%clk 0:00:08]}  Be6 {[%clk 0:00:04]} 31. d7 {[%clk 0:00:08]}  Bxd7 {[%clk 0:00:04]} 32. Bd6+ {[%clk 0:00:08]}  Ke8 {[%clk 0:00:04]} 33. Be4 {[%clk 0:00:06]}  Rg6 {[%clk 0:00:04]} 34. Be5 {[%clk 0:00:05]}  Re6 {[%clk 0:00:04]} 35. f4 {[%clk 0:00:06]}  Kd8 {[%clk 0:00:04]} 36. Ng7 {[%clk 0:00:05]}  Rh6 {[%clk 0:00:04]} 37. Nf5 {[%clk 0:00:05]}  Re6 {[%clk 0:00:04]} 38. Nd4 {[%clk 0:00:04]}  Rb6 {[%clk 0:00:04]} 39. Bf5 {[%clk 0:00:04]}  Bxf5 {[%clk 0:00:04]} 40. Nxf5 {[%clk 0:00:05]}  Kd7 {[%clk 0:00:04]} 41. Nd4 {[%clk 0:00:05]}  Rg6 {[%clk 0:00:03]} 42. Kf2 {[%clk 0:00:05]}  Rh6 {[%clk 0:00:03]} 43. h3 {[%clk 0:00:05]}  b4 {[%clk 0:00:02]} 44. Kg3 {[%clk 0:00:05]}  a5 {[%clk 0:00:02]} 45. Kf3 {[%clk 0:00:04]}  Ra6 {[%clk 0:00:03]} 46. g4 {[%clk 0:00:04]}  a4 {[%clk 0:00:03]} 47. g5 {[%clk 0:00:04]}  a3 {[%clk 0:00:03]} 48. f5 {[%clk 0:00:03]}  Ra5 {[%clk 0:00:04]} 49. Ke4 {[%clk 0:00:03]}  Rc5 {[%clk 0:00:04]} 50. f6 {[%clk 0:00:03]}  Rc1 {[%clk 0:00:04]} 51. f7 {[%clk 0:00:04]}  Ke7 {[%clk 0:00:04]} 52. Nf5+ {[%clk 0:00:02]}  Kxf7 {[%clk 0:00:04]} 53. Nd6+ {[%clk 0:00:03]}  Ke6 {[%clk 0:00:04]} 54. Nc4 {[%clk 0:00:04]}  Rc2 {[%clk 0:00:03]} 55. Bd6 {[%clk 0:00:04]}  Rxa2 {[%clk 0:00:03]} 56. Bxb4 {[%clk 0:00:04]}  Re2+ {[%clk 0:00:04]} 57. Kd3 {[%clk 0:00:04]}  a2 {[%clk 0:00:05]} 58. Bc3 {[%clk 0:00:04]}  Rh2 {[%clk 0:00:05]} 59. Ne3 {[%clk 0:00:03]}  Rxh3 {[%clk 0:00:06]} 60. Ke4 {[%clk 0:00:02]}  Rh1 {[%clk 0:00:06]} 61. Nc2 {[%clk 0:00:02]}  Rc1 {[%clk 0:00:06]} 62. Kd3 {[%clk 0:00:01]}  Rd1+ {[%clk 0:00:07]} 63. Ke2 {[%clk 0:00:01]}  Rg1 {[%clk 0:00:08]} 64. Kd2 {[%clk 0:00:02]}  Rxg5 {[%clk 0:00:08]} 65. Kc1 {[%clk 0:00:03]}  Rg2 {[%clk 0:00:08]} 66. Kb2 {[%clk 0:00:04]}  h5 {[%clk 0:00:08]} 67. b4 {[%clk 0:00:02]}  h4 {[%clk 0:00:09]} 68. Kb3 {[%clk 0:00:02]}  h3 {[%clk 0:00:09]} 69. Ne3 {[%clk 0:00:02]}  h2 {[%clk 0:00:09]} 70. Nxg2 {[%clk 0:00:02]}  h1=Q {[%clk 0:00:09]} 71. Ne3 {[%clk 0:00:02]}  Qb1+ {[%clk 0:00:09]} 72. Kc4 {[%clk 0:00:02]}  a1=Q {[%clk 0:00:10]} 73. Bxa1 {[%clk 0:00:03]}  Qxa1 {[%clk 0:00:11]} 74. Nc2 {[%clk 0:00:03]}  Qa2+ {[%clk 0:00:12]} 75. Kd3 {[%clk 0:00:03]}  Qb3+ {[%clk 0:00:11]} 76. Kd2 {[%clk 0:00:02]}  Kd5 {[%clk 0:00:12]} 77. Ne3+ {[%clk 0:00:02]}  Ke4 {[%clk 0:00:12]} 78. Nc2 {[%clk 0:00:03]}  Qd3+ {[%clk 0:00:12]} 79. Kc1 {[%clk 0:00:03]}  Qc3 {[%clk 0:00:13]} 80. Kb1 {[%clk 0:00:03]}  Kd3 {[%clk 0:00:14]} 81. Ne3 {[%clk 0:00:02]}  Kxe3 {[%clk 0:00:14]} 82. Ka2 {[%clk 0:00:02]}  Qxb4 {[%clk 0:00:13]} 83. Ka1 {[%clk 0:00:03]}  Kd2 {[%clk 0:00:14]} 84. Ka2 {[%clk 0:00:04]}  Kc2 {[%clk 0:00:15]} 85. Ka1 {[%clk 0:00:03]}  Qb2# {[%clk 0:00:15]} 0-1


[Site "https://www.chess.com"]

[Event "Titled Tuesday Blitz September 27 Early 2022"]
[White "Andreikin, Dmitry"]
[Black "Reyes, Narquingden"]
[WhiteFideId "4158814"]
[BlackFideId "5217334"]
[WhiteElo "2736"]
[BlackElo "2313"]
[Result "1-0"]
[Round "04"]
[TimeControl "180+1"]
[Date "2022.09.27"]
[WhiteClock "0:01:28"]
[BlackClock "0:00:21"]

1. d4 {[%clk 0:03:00]}  d5 {[%clk 0:02:59]} 2. c4 {[%clk 0:03:00]}  c6 {[%clk 0:02:59]} 3. Nf3 {[%clk 0:03:01]}  Nf6 {[%clk 0:02:59]} 4. Nc3 {[%clk 0:02:58]}  a6 {[%clk 0:02:59]} 5. Qc2 {[%clk 0:02:56]}  g6 {[%clk 0:02:55]} 6. cxd5 {[%clk 0:02:54]}  cxd5 {[%clk 0:02:54]} 7. Bf4 {[%clk 0:02:55]}  Nc6 {[%clk 0:02:54]} 8. h3 {[%clk 0:02:52]}  Bg7 {[%clk 0:02:54]} 9. e3 {[%clk 0:02:52]}  O-O {[%clk 0:02:54]} 10. Be2 {[%clk 0:02:53]}  Bf5 {[%clk 0:02:50]} 11. Qb3 {[%clk 0:02:53]}  Na5 {[%clk 0:02:49]} 12. Qb4 {[%clk 0:02:53]}  Rc8 {[%clk 0:02:28]} 13. O-O {[%clk 0:02:51]}  b5 {[%clk 0:02:24]} 14. Ne5 {[%clk 0:02:51]}  Nd7 {[%clk 0:02:20]} 15. Nxd5 {[%clk 0:02:44]}  Nxe5 {[%clk 0:02:07]} 16. Nxe7+ {[%clk 0:02:44]}  Kh8 {[%clk 0:02:08]} 17. dxe5 {[%clk 0:02:38]}  Nc6 {[%clk 0:02:03]} 18. Nxc6 {[%clk 0:02:37]}  Rxc6 {[%clk 0:02:04]} 19. Rac1 {[%clk 0:02:34]}  Re6 {[%clk 0:01:56]} 20. Rfd1 {[%clk 0:02:33]}  Qe7 {[%clk 0:01:44]} 21. Qd4 {[%clk 0:02:17]}  g5 {[%clk 0:01:38]} 22. Bh2 {[%clk 0:02:17]}  f6 {[%clk 0:01:35]} 23. Qc5 {[%clk 0:02:06]}  fxe5 {[%clk 0:01:31]} 24. Qxe7 {[%clk 0:02:03]}  Rxe7 {[%clk 0:01:32]} 25. b4 {[%clk 0:01:59]}  h6 {[%clk 0:01:27]} 26. Rc6 {[%clk 0:01:58]}  Rf6 {[%clk 0:01:27]} 27. Rxf6 {[%clk 0:01:52]}  Bxf6 {[%clk 0:01:28]} 28. g4 {[%clk 0:01:50]}  Be6 {[%clk 0:01:19]} 29. Rd6 {[%clk 0:01:50]}  Kg7 {[%clk 0:01:19]} 30. Rxa6 {[%clk 0:01:50]}  Bd5 {[%clk 0:01:08]} 31. Rd6 {[%clk 0:01:50]}  Bxa2 {[%clk 0:01:06]} 32. Bxb5 {[%clk 0:01:50]}  Kf7 {[%clk 0:01:03]} 33. Bc6 {[%clk 0:01:49]}  Re6 {[%clk 0:00:51]} 34. Bd5 {[%clk 0:01:47]}  Bxd5 {[%clk 0:00:50]} 35. Rxd5 {[%clk 0:01:48]}  Rb6 {[%clk 0:00:39]} 36. b5 {[%clk 0:01:44]}  Ke6 {[%clk 0:00:38]} 37. e4 {[%clk 0:01:39]}  Rb7 {[%clk 0:00:32]} 38. Kg2 {[%clk 0:01:39]}  Rc7 {[%clk 0:00:31]} 39. b6 {[%clk 0:01:38]}  Rb7 {[%clk 0:00:31]} 40. Rb5 {[%clk 0:01:38]}  Kd6 {[%clk 0:00:32]} 41. Kf3 {[%clk 0:01:35]}  Kc6 {[%clk 0:00:32]} 42. Rd5 {[%clk 0:01:35]}  Rxb6 {[%clk 0:00:30]} 43. Bxe5 {[%clk 0:01:34]}  Rb3+ {[%clk 0:00:30]} 44. Kg2 {[%clk 0:01:34]}  Be7 {[%clk 0:00:30]} 45. Bg7 {[%clk 0:01:31]}  Bc5 {[%clk 0:00:29]} 46. Bxh6 {[%clk 0:01:31]}  Rb2 {[%clk 0:00:29]} 47. Rf5 {[%clk 0:01:31]}  Re2 {[%clk 0:00:24]} 48. Bxg5 {[%clk 0:01:27]}  Rxe4 {[%clk 0:00:24]} 49. Be3 {[%clk 0:01:28]}  Bxe3 {[%clk 0:00:24]} 50. fxe3 {[%clk 0:01:28]}  Rxe3 {[%clk 0:00:23]} 51. h4 {[%clk 0:01:28]}  Kd6 {[%clk 0:00:24]} 52. h5 {[%clk 0:01:29]}  Re6 {[%clk 0:00:23]} 53. Kg3 {[%clk 0:01:29]}  Ke7 {[%clk 0:00:23]} 54. Kf4 {[%clk 0:01:28]}  Ra6 {[%clk 0:00:23]} 55. Kg5 {[%clk 0:01:28]}  Ra1 {[%clk 0:00:21]} 56. h6 {[%clk 0:01:28]}  Rh1 {[%clk 0:00:21]} 57. Kg6 {[%clk 0:01:28]}  Rh4 {[%clk 0:00:21]} 58. g5 {[%clk 0:01:28]} 1-0


[Site "https://www.chess.com"]

[Event "Titled Tuesday Blitz September 27 Early 2022"]
[White "Ansh M Shah"]
[Black "Dilmukhametov, Artur"]
[WhiteFideId "25033379"]
[BlackFideId "24179922"]
[WhiteElo "1819"]
[BlackElo "2206"]
[Result "1-0"]
[Round "04"]
[TimeControl "180+1"]
[Date "2022.09.27"]
[WhiteClock "0:00:05"]
[BlackClock "0:00:14"]

1. d4 {[%clk 0:03:00]}  Nf6 {[%clk 0:02:59]} 2. c4 {[%clk 0:03:01]}  g6 {[%clk 0:02:58]} 3. h4 {[%clk 0:03:02]}  h5 {[%clk 0:02:57]} 4. Nc3 {[%clk 0:03:02]}  Bg7 {[%clk 0:02:57]} 5. Nf3 {[%clk 0:03:00]}  O-O {[%clk 0:02:57]} 6. e4 {[%clk 0:03:00]}  d6 {[%clk 0:02:57]} 7. Be2 {[%clk 0:02:59]}  Nbd7 {[%clk 0:02:57]} 8. Ng5 {[%clk 0:02:56]}  e5 {[%clk 0:02:53]} 9. d5 {[%clk 0:02:56]}  Ne8 {[%clk 0:02:47]} 10. Be3 {[%clk 0:02:49]}  b6 {[%clk 0:02:43]} 11. Qd2 {[%clk 0:02:43]}  Nc5 {[%clk 0:02:42]} 12. O-O-O {[%clk 0:02:42]}  f6 {[%clk 0:02:40]} 13. Nh3 {[%clk 0:02:07]}  Bxh3 {[%clk 0:02:22]} 14. Rxh3 {[%clk 0:02:08]}  a5 {[%clk 0:02:21]} 15. g4 {[%clk 0:01:48]}  hxg4 {[%clk 0:02:19]} 16. Bxg4 {[%clk 0:01:49]}  a4 {[%clk 0:02:18]} 17. Bxc5 {[%clk 0:01:29]}  bxc5 {[%clk 0:02:16]} 18. Be6+ {[%clk 0:01:30]}  Kh7 {[%clk 0:02:13]} 19. Rg1 {[%clk 0:01:23]}  Bh6 {[%clk 0:02:12]} 20. Re3 {[%clk 0:01:18]}  Bxe3 {[%clk 0:02:11]} 21. Qxe3 {[%clk 0:01:19]}  Qe7 {[%clk 0:02:04]} 22. f4 {[%clk 0:01:02]}  Ng7 {[%clk 0:02:03]} 23. Qg3 {[%clk 0:00:51]}  Nxe6 {[%clk 0:01:54]} 24. Qxg6+ {[%clk 0:00:50]}  Kh8 {[%clk 0:01:54]} 25. dxe6 {[%clk 0:00:39]}  Rg8 {[%clk 0:01:52]} 26. Qh6+ {[%clk 0:00:35]}  Qh7 {[%clk 0:01:51]} 27. Qxf6+ {[%clk 0:00:36]}  Rg7 {[%clk 0:01:44]} 28. Nd5 {[%clk 0:00:20]}  Rg8 {[%clk 0:01:41]} 29. Ne7 {[%clk 0:00:17]}  Qxe4 {[%clk 0:01:24]} 30. Qh6+ {[%clk 0:00:13]}  Qh7 {[%clk 0:01:20]} 31. Qf6 {[%clk 0:00:10]}  Qh5 {[%clk 0:00:48]} 32. Ng6+ {[%clk 0:00:08]}  Kh7 {[%clk 0:00:45]} 33. Nf8+ {[%clk 0:00:05]}  Kh8 {[%clk 0:00:38]} 34. e7 {[%clk 0:00:05]}  Qf7 {[%clk 0:00:19]} 35. Rg5 {[%clk 0:00:04]}  Qxf6 {[%clk 0:00:18]} 36. Rh5+ {[%clk 0:00:04]}  Rh7 {[%clk 0:00:14]} 37. Rxh7# {[%clk 0:00:05]} 1-0


[Site "https://www.chess.com"]

[Event "Titled Tuesday Blitz September 27 Early 2022"]
[White "Antonova, Nadezhda"]
[Black "Vovk, Orest"]
[WhiteFideId "14700182"]
[BlackFideId "14113490"]
[WhiteElo "1805"]
[BlackElo "2203"]
[Result "0-1"]
[Round "04"]
[TimeControl "180+1"]
[Date "2022.09.27"]
[WhiteClock "0:02:30"]
[BlackClock "0:02:38"]

1. Nf3 {[%clk 0:02:59]}  Nf6 {[%clk 0:02:48]} 2. b3 {[%clk 0:02:59]}  g5 {[%clk 0:02:47]} 3. Nxg5 {[%clk 0:02:57]}  Rg8 {[%clk 0:02:47]} 4. Nf3 {[%clk 0:02:56]}  d5 {[%clk 0:02:46]} 5. Bb2 {[%clk 0:02:56]}  Nc6 {[%clk 0:02:46]} 6. g3 {[%clk 0:02:55]}  Bf5 {[%clk 0:02:46]} 7. d3 {[%clk 0:02:54]}  Qd6 {[%clk 0:02:46]} 8. Nbd2 {[%clk 0:02:53]}  e5 {[%clk 0:02:46]} 9. Bg2 {[%clk 0:02:51]}  O-O-O {[%clk 0:02:44]} 10. e3 {[%clk 0:02:45]}  Bh6 {[%clk 0:02:42]} 11. Qe2 {[%clk 0:02:45]}  Nb4 {[%clk 0:02:39]} 12. Qd1 {[%clk 0:02:33]}  Bxd3 {[%clk 0:02:38]} 13. a3 {[%clk 0:02:30]}  Nxc2+ {[%clk 0:02:38]} 0-1


[Site "https://www.chess.com"]

[Event "Titled Tuesday Blitz September 27 Early 2022"]
[White "Aqib Javaid Butt"]
[Black "Huber, Benedikt"]
[WhiteFideId "7801262"]
[BlackFideId "12923583"]
[WhiteElo "1634"]
[BlackElo "1979"]
[Result "0-1"]
[Round "04"]
[TimeControl "180+1"]
[Date "2022.09.27"]
[WhiteClock "0:01:50"]
[BlackClock "0:01:34"]

1. d4 {[%clk 0:02:58]}  e6 {[%clk 0:02:27]} 2. c4 {[%clk 0:02:57]}  f5 {[%clk 0:02:27]} 3. Nf3 {[%clk 0:02:58]}  Nf6 {[%clk 0:02:27]} 4. Nc3 {[%clk 0:02:58]}  Bb4 {[%clk 0:02:27]} 5. Bd2 {[%clk 0:02:58]}  b6 {[%clk 0:02:26]} 6. g3 {[%clk 0:02:59]}  Bb7 {[%clk 0:02:26]} 7. Bg2 {[%clk 0:02:59]}  O-O {[%clk 0:02:27]} 8. O-O {[%clk 0:03:00]}  d6 {[%clk 0:02:26]} 9. a3 {[%clk 0:03:00]}  Bxc3 {[%clk 0:02:26]} 10. Bxc3 {[%clk 0:03:01]}  Ne4 {[%clk 0:02:25]} 11. Nd2 {[%clk 0:02:59]}  Nxc3 {[%clk 0:02:24]} 12. bxc3 {[%clk 0:02:58]}  Bxg2 {[%clk 0:02:25]} 13. Kxg2 {[%clk 0:02:59]}  Nd7 {[%clk 0:02:26]} 14. f3 {[%clk 0:02:54]}  e5 {[%clk 0:02:26]} 15. e4 {[%clk 0:02:54]}  Qf6 {[%clk 0:02:24]} 16. Nb3 {[%clk 0:02:49]}  f4 {[%clk 0:02:23]} 17. g4 {[%clk 0:02:46]}  a5 {[%clk 0:02:12]} 18. a4 {[%clk 0:02:43]}  Qf7 {[%clk 0:02:03]} 19. d5 {[%clk 0:02:34]}  h5 {[%clk 0:01:59]} 20. h3 {[%clk 0:02:27]}  Qg6 {[%clk 0:02:00]} 21. Qe1 {[%clk 0:02:23]}  Kf7 {[%clk 0:02:00]} 22. Rh1 {[%clk 0:02:20]}  Rh8 {[%clk 0:02:00]} 23. Qh4 {[%clk 0:02:17]}  hxg4 {[%clk 0:01:54]} 24. Qxg4 {[%clk 0:02:17]}  Nf6 {[%clk 0:01:44]} 25. Qxg6+ {[%clk 0:02:16]}  Kxg6 {[%clk 0:01:45]} 26. Nd2 {[%clk 0:02:03]}  Rh4 {[%clk 0:01:42]} 27. Rag1 {[%clk 0:02:00]}  Rah8 {[%clk 0:01:36]} 28. Nf1 {[%clk 0:01:55]}  Nd7 {[%clk 0:01:35]} 29. Kh2+ {[%clk 0:01:53]}  Kf7 {[%clk 0:01:34]} 30. Rg2 {[%clk 0:01:50]}  Rxh3+ {[%clk 0:01:34]} 0-1


[Site "https://www.chess.com"]

[Event "Titled Tuesday Blitz September 27 Early 2022"]
[White "Averjanov, Alexey"]
[Black "Tang, Andrew"]
[WhiteFideId "14109867"]
[BlackFideId "2059630"]
[WhiteElo "2649"]
[BlackElo "2584"]
[Result "0-1"]
[Round "04"]
[TimeControl "180+1"]
[Date "2022.09.27"]
[WhiteClock "0:00:14"]
[BlackClock "0:01:48"]

1. d4 {[%clk 0:03:00]}  d5 {[%clk 0:03:00]} 2. c4 {[%clk 0:03:01]}  e6 {[%clk 0:03:00]} 3. Nf3 {[%clk 0:03:01]}  Nf6 {[%clk 0:03:00]} 4. e3 {[%clk 0:03:01]}  b6 {[%clk 0:03:00]} 5. Nbd2 {[%clk 0:03:01]}  Bb7 {[%clk 0:03:00]} 6. Bd3 {[%clk 0:02:57]}  Nbd7 {[%clk 0:02:59]} 7. O-O {[%clk 0:02:57]}  Bd6 {[%clk 0:02:56]} 8. Qe2 {[%clk 0:02:58]}  Ne4 {[%clk 0:02:55]} 9. b3 {[%clk 0:02:58]}  f5 {[%clk 0:02:52]} 10. Bb2 {[%clk 0:02:58]}  Qf6 {[%clk 0:02:52]} 11. cxd5 {[%clk 0:02:55]}  exd5 {[%clk 0:02:50]} 12. Ba6 {[%clk 0:02:54]}  Bxa6 {[%clk 0:02:46]} 13. Qxa6 {[%clk 0:02:55]}  Qh6 {[%clk 0:02:33]} 14. g3 {[%clk 0:02:47]}  O-O {[%clk 0:02:27]} 15. Ba3 {[%clk 0:02:46]}  Ndf6 {[%clk 0:02:22]} 16. Bxd6 {[%clk 0:02:45]}  cxd6 {[%clk 0:02:23]} 17. Rac1 {[%clk 0:02:27]}  Qh3 {[%clk 0:02:19]} 18. Rc7 {[%clk 0:01:27]}  Ng4 {[%clk 0:02:13]} 19. Qe2 {[%clk 0:01:15]}  Rf6 {[%clk 0:02:11]} 20. Rfc1 {[%clk 0:01:01]}  Raf8 {[%clk 0:02:03]} 21. Qf1 {[%clk 0:00:33]}  Qh5 {[%clk 0:01:55]} 22. Qg2 {[%clk 0:00:24]}  Nexf2 {[%clk 0:01:49]} 23. Rxa7 {[%clk 0:00:20]}  Nh3+ {[%clk 0:01:48]} 24. Kh1 {[%clk 0:00:14]}  Ngf2+ {[%clk 0:01:48]} 0-1


[Site "https://www.chess.com"]

[Event "Titled Tuesday Blitz September 27 Early 2022"]
[White "Bachmann, Axel"]
[Black "Navarrete Mendez, Gonzalo Alberto"]
[WhiteFideId "3700488"]
[BlackFideId "5106850"]
[WhiteElo "2595"]
[BlackElo "2261"]
[Result "0-1"]
[Round "04"]
[TimeControl "180+1"]
[Date "2022.09.27"]
[WhiteClock "0:00:06"]
[BlackClock "0:02:31"]

1. d4 {[%clk 0:02:56]}  d5 {[%clk 0:02:59]} 2. c4 {[%clk 0:02:55]}  dxc4 {[%clk 0:03:00]} 3. e3 {[%clk 0:02:54]}  Nc6 {[%clk 0:02:59]} 4. Bxc4 {[%clk 0:02:51]}  e5 {[%clk 0:03:00]} 5. Nf3 {[%clk 0:02:47]}  e4 {[%clk 0:03:00]} 6. Nfd2 {[%clk 0:02:44]}  Qg5 {[%clk 0:02:59]} 7. Nxe4 {[%clk 0:02:40]}  Qxg2 {[%clk 0:02:59]} 8. Ng3 {[%clk 0:02:41]}  Qh3 {[%clk 0:02:59]} 9. Nc3 {[%clk 0:02:28]}  Nf6 {[%clk 0:02:57]} 10. Qb3 {[%clk 0:02:23]}  Bd6 {[%clk 0:02:57]} 11. Bxf7+ {[%clk 0:02:14]}  Kd8 {[%clk 0:02:57]} 12. Bd2 {[%clk 0:02:00]}  Bxg3 {[%clk 0:02:57]} 13. fxg3 {[%clk 0:02:00]}  Bg4 {[%clk 0:02:56]} 14. Qxb7 {[%clk 0:01:46]}  Qg2 {[%clk 0:02:54]} 15. Rf1 {[%clk 0:01:41]}  Nb4 {[%clk 0:02:44]} 16. Qxb4 {[%clk 0:01:31]}  Ne4 {[%clk 0:02:41]} 17. Bc1 {[%clk 0:00:36]}  Qxh2 {[%clk 0:02:37]} 18. Rf4 {[%clk 0:00:06]}  Qg1+ {[%clk 0:02:31]} 0-1


[Site "https://www.chess.com"]

[Event "Titled Tuesday Blitz September 27 Early 2022"]
[White "Bacrot, Etienne"]
[Black "Girel, Joseph"]
[WhiteFideId "605506"]
[BlackFideId "36033561"]
[WhiteElo "2666"]
[BlackElo "2104"]
[Result "0-1"]
[Round "04"]
[TimeControl "180+1"]
[Date "2022.09.27"]
[WhiteClock "0:00:08"]
[BlackClock "0:00:22"]

1. e4 {[%clk 0:03:00]}  e5 {[%clk 0:02:58]} 2. Nf3 {[%clk 0:03:01]}  Nc6 {[%clk 0:02:58]} 3. Bb5 {[%clk 0:03:00]}  Nf6 {[%clk 0:02:58]} 4. O-O {[%clk 0:03:00]}  Nxe4 {[%clk 0:02:58]} 5. Re1 {[%clk 0:03:00]}  Nd6 {[%clk 0:02:58]} 6. Nxe5 {[%clk 0:03:00]}  Be7 {[%clk 0:02:57]} 7. Bf1 {[%clk 0:02:59]}  Nxe5 {[%clk 0:02:57]} 8. Rxe5 {[%clk 0:02:59]}  O-O {[%clk 0:02:57]} 9. Nc3 {[%clk 0:02:59]}  Bf6 {[%clk 0:02:55]} 10. Re1 {[%clk 0:02:58]}  Re8 {[%clk 0:02:55]} 11. Nd5 {[%clk 0:02:57]}  Rxe1 {[%clk 0:02:55]} 12. Qxe1 {[%clk 0:02:54]}  b6 {[%clk 0:02:55]} 13. Nxf6+ {[%clk 0:02:54]}  Qxf6 {[%clk 0:02:56]} 14. d3 {[%clk 0:02:53]}  Bb7 {[%clk 0:02:55]} 15. Qe3 {[%clk 0:02:52]}  c5 {[%clk 0:02:51]} 16. c3 {[%clk 0:02:50]}  Re8 {[%clk 0:02:49]} 17. Qf4 {[%clk 0:02:50]}  Qxf4 {[%clk 0:02:46]} 18. Bxf4 {[%clk 0:02:51]}  Nf5 {[%clk 0:02:46]} 19. f3 {[%clk 0:02:33]}  f6 {[%clk 0:02:45]} 20. Kf2 {[%clk 0:02:33]}  g5 {[%clk 0:02:44]} 21. Bd2 {[%clk 0:02:33]}  h5 {[%clk 0:02:43]} 22. a4 {[%clk 0:02:31]}  Bc6 {[%clk 0:02:09]} 23. a5 {[%clk 0:02:28]}  Kf7 {[%clk 0:02:05]} 24. axb6 {[%clk 0:01:47]}  axb6 {[%clk 0:02:06]} 25. Ra6 {[%clk 0:01:46]}  b5 {[%clk 0:02:03]} 26. Be2 {[%clk 0:01:35]}  h4 {[%clk 0:02:00]} 27. Ra5 {[%clk 0:01:20]}  Kg6 {[%clk 0:01:49]} 28. Ra7 {[%clk 0:01:13]}  Ne7 {[%clk 0:01:24]} 29. Bd1 {[%clk 0:00:38]}  Nd5 {[%clk 0:01:20]} 30. Ra5 {[%clk 0:00:37]}  Nf4 {[%clk 0:01:12]} 31. Bxf4 {[%clk 0:00:32]}  gxf4 {[%clk 0:01:13]} 32. d4 {[%clk 0:00:22]}  cxd4 {[%clk 0:01:14]} 33. Bc2+ {[%clk 0:00:20]}  Kg7 {[%clk 0:01:06]} 34. cxd4 {[%clk 0:00:20]}  Re3 {[%clk 0:01:05]} 35. Ra3 {[%clk 0:00:15]}  Rxa3 {[%clk 0:00:43]} 36. bxa3 {[%clk 0:00:15]}  Kf7 {[%clk 0:00:42]} 37. Ke2 {[%clk 0:00:15]}  Bd5 {[%clk 0:00:41]} 38. Bd3 {[%clk 0:00:13]}  Bc4 {[%clk 0:00:28]} 39. Bxc4+ {[%clk 0:00:09]}  bxc4 {[%clk 0:00:28]} 40. d5 {[%clk 0:00:09]}  Ke7 {[%clk 0:00:24]} 41. Kd2 {[%clk 0:00:08]}  Kd6 {[%clk 0:00:24]} 42. Kc3 {[%clk 0:00:08]}  Kxd5 {[%clk 0:00:22]} 0-1


[Site "https://www.chess.com"]

[Event "Titled Tuesday Blitz September 27 Early 2022"]
[White "Balkum, Alexander"]
[Black "Runets, Ivan"]
[WhiteFideId "2005069"]
[BlackFideId "13511564"]
[WhiteElo "2343"]
[BlackElo "1962"]
[Result "1-0"]
[Round "04"]
[TimeControl "180+1"]
[Date "2022.09.27"]
[WhiteClock "0:00:12"]
[BlackClock "0:00:03"]

1. e4 {[%clk 0:03:00]}  c5 {[%clk 0:02:59]} 2. Nf3 {[%clk 0:03:00]}  e6 {[%clk 0:02:59]} 3. d4 {[%clk 0:03:00]}  cxd4 {[%clk 0:02:59]} 4. Nxd4 {[%clk 0:03:01]}  Nf6 {[%clk 0:02:59]} 5. Nc3 {[%clk 0:03:00]}  d6 {[%clk 0:02:58]} 6. g4 {[%clk 0:03:00]}  Nc6 {[%clk 0:02:55]} 7. g5 {[%clk 0:02:55]}  Nd7 {[%clk 0:02:54]} 8. Nxc6 {[%clk 0:02:37]}  bxc6 {[%clk 0:02:53]} 9. Be3 {[%clk 0:02:33]}  d5 {[%clk 0:02:51]} 10. h4 {[%clk 0:02:28]}  Bd6 {[%clk 0:02:21]} 11. Bg2 {[%clk 0:02:19]}  Ba6 {[%clk 0:02:12]} 12. f4 {[%clk 0:02:11]}  Qc7 {[%clk 0:01:47]} 13. e5 {[%clk 0:02:08]}  Bc5 {[%clk 0:01:42]} 14. Bxc5 {[%clk 0:01:14]}  Nxc5 {[%clk 0:01:43]} 15. Qd2 {[%clk 0:01:15]}  Rb8 {[%clk 0:01:37]} 16. b3 {[%clk 0:01:11]}  Qb6 {[%clk 0:01:21]} 17. O-O-O {[%clk 0:01:06]}  Qa5 {[%clk 0:01:12]} 18. h5 {[%clk 0:00:51]}  Qa3+ {[%clk 0:01:10]} 19. Kb1 {[%clk 0:00:50]}  O-O {[%clk 0:01:06]} 20. g6 {[%clk 0:00:36]}  fxg6 {[%clk 0:01:04]} 21. h6 {[%clk 0:00:34]}  Rfd8 {[%clk 0:00:43]} 22. f5 {[%clk 0:00:29]}  d4 {[%clk 0:00:42]} 23. hxg7 {[%clk 0:00:20]}  d3 {[%clk 0:00:17]} 24. f6 {[%clk 0:00:14]}  Bc4 {[%clk 0:00:09]} 25. Rxh7 {[%clk 0:00:12]}  dxc2+ {[%clk 0:00:06]} 26. Qxc2 {[%clk 0:00:12]}  Rxd1+ {[%clk 0:00:06]} 27. Nxd1 {[%clk 0:00:10]}  Bd3 {[%clk 0:00:03]} 28. Rh8+ {[%clk 0:00:10]}  Kf7 {[%clk 0:00:03]} 29. Rxb8 {[%clk 0:00:10]}  Bxc2+ {[%clk 0:00:03]} 30. Kxc2 {[%clk 0:00:11]}  Qxa2+ {[%clk 0:00:03]} 31. Nb2 {[%clk 0:00:12]} 1-0


[Site "https://www.chess.com"]